Department Family,Entity,Date,Expense Type,Expense Area,Supplier,Transaction Number,AP Amount
Department of Health,NHS Barnsley CCG,30/09/2021,Clinical&Medical-Clinical Other,PRIMARY CARE DEVELOPMENT,BARNSLEY HEALTHCARE FEDERATION,38018865,"54,166.67"
Department of Health,NHS Barnsley CCG,30/09/2021,Clinical&Medical-Commercial Sector,OUT OF HOURS,BARNSLEY HEALTHCARE FEDERATION,38018887,"143,888.44"
Department of Health,NHS Barnsley CCG,30/09/2021,C&M-APMS Contract Value,PRC DELEGATED CO-COMMISSIONING,BARNSLEY HEALTHCARE FEDERATION,38040456,"31,610.43"
Department of Health,NHS Barnsley CCG,30/09/2021,C&M-APMS OOH Opt Outs,PRC DELEGATED CO-COMMISSIONING,BARNSLEY HEALTHCARE FEDERATION,38040456,8.69
Department of Health,NHS Barnsley CCG,30/09/2021,C&M-APMS PCN DES Participation,PRC DELEGATED CO-COMMISSIONING,BARNSLEY HEALTHCARE FEDERATION,38040456,564.47
Department of Health,NHS Barnsley CCG,30/09/2021,C&M-APMS Prem Actual Rent,PRC DELEGATED CO-COMMISSIONING,BARNSLEY HEALTHCARE FEDERATION,38040456,"1,310.42"
Department of Health,NHS Barnsley CCG,30/09/2021,C&M-APMS Prem Rates,PRC DELEGATED CO-COMMISSIONING,BARNSLEY HEALTHCARE FEDERATION,38040456,511.00
Department of Health,NHS Barnsley CCG,30/09/2021,C&M-APMS QOF Aspiration,PRC DELEGATED CO-COMMISSIONING,BARNSLEY HEALTHCARE FEDERATION,38040456,"2,634.94"
Department of Health,NHS Barnsley CCG,30/09/2021,C&M-APMS Contract Value,PRC DELEGATED CO-COMMISSIONING,BARNSLEY HEALTHCARE FEDERATION,38040458,"31,631.51"
Department of Health,NHS Barnsley CCG,30/09/2021,C&M-APMS DES Learn Dsblty Hlth Chk,PRC DELEGATED CO-COMMISSIONING,BARNSLEY HEALTHCARE FEDERATION,38040458,140.00
Department of Health,NHS Barnsley CCG,30/09/2021,C&M-APMS OOH Opt Outs,PRC DELEGATED CO-COMMISSIONING,BARNSLEY HEALTHCARE FEDERATION,38040458,45.30
Department of Health,NHS Barnsley CCG,30/09/2021,C&M-APMS PCN DES Participation,PRC DELEGATED CO-COMMISSIONING,BARNSLEY HEALTHCARE FEDERATION,38040458,580.08
Department of Health,NHS Barnsley CCG,30/09/2021,C&M-APMS Prem Actual Rent,PRC DELEGATED CO-COMMISSIONING,BARNSLEY HEALTHCARE FEDERATION,38040458,"2,150.00"
Department of Health,NHS Barnsley CCG,30/09/2021,C&M-APMS Prem Healthcentre Rent,PRC DELEGATED CO-COMMISSIONING,BARNSLEY HEALTHCARE FEDERATION,38040458,"7,733.91"
Department of Health,NHS Barnsley CCG,30/09/2021,C&M-APMS Prem Rates,PRC DELEGATED CO-COMMISSIONING,BARNSLEY HEALTHCARE FEDERATION,38040458,511.00
Department of Health,NHS Barnsley CCG,30/09/2021,C&M-APMS QOF Aspiration,PRC DELEGATED CO-COMMISSIONING,BARNSLEY HEALTHCARE FEDERATION,38040458,"2,577.74"
Department of Health,NHS Barnsley CCG,30/09/2021,C&M-APMS Contract Value,PRC DELEGATED CO-COMMISSIONING,BARNSLEY HEALTHCARE FEDERATION,38040460,"29,046.73"
Department of Health,NHS Barnsley CCG,30/09/2021,C&M-APMS DES Learn Dsblty Hlth Chk,PRC DELEGATED CO-COMMISSIONING,BARNSLEY HEALTHCARE FEDERATION,38040460,560.00
Department of Health,NHS Barnsley CCG,30/09/2021,C&M-APMS OOH Opt Outs,PRC DELEGATED CO-COMMISSIONING,BARNSLEY HEALTHCARE FEDERATION,38040460,15.15
Department of Health,NHS Barnsley CCG,30/09/2021,C&M-APMS PCN DES Participation,PRC DELEGATED CO-COMMISSIONING,BARNSLEY HEALTHCARE FEDERATION,38040460,532.68
Department of Health,NHS Barnsley CCG,30/09/2021,C&M-APMS Prem Actual Rent,PRC DELEGATED CO-COMMISSIONING,BARNSLEY HEALTHCARE FEDERATION,38040460,"6,200.00"
Department of Health,NHS Barnsley CCG,30/09/2021,C&M-APMS Prem Rates,PRC DELEGATED CO-COMMISSIONING,BARNSLEY HEALTHCARE FEDERATION,38040460,"1,073.00"
Department of Health,NHS Barnsley CCG,30/09/2021,C&M-APMS QOF Aspiration,PRC DELEGATED CO-COMMISSIONING,BARNSLEY HEALTHCARE FEDERATION,38040460,"2,741.19"
Department of Health,NHS Barnsley CCG,30/09/2021,ME - APMS GP Prior Year ERs,PRC DELEGATED CO-COMMISSIONING,BARNSLEY HEALTHCARE FEDERATION,38040460,"4,068.71"
Department of Health,NHS Barnsley CCG,30/09/2021,ME-APMS GP Prior Year EEs,PRC DELEGATED CO-COMMISSIONING,BARNSLEY HEALTHCARE FEDERATION,38040460,"3,819.81"
Department of Health,NHS Barnsley CCG,30/09/2021,C&M-GP PRACTICE REVENUE - PCTF,LOCAL ENHANCED SERVICES,BARNSLEY HEALTHCARE FEDERATION,38072184,"126,067.75"
Department of Health,NHS Barnsley CCG,30/09/2021,C&M-PMS Contract Value,PRC DELEGATED CO-COMMISSIONING,BARNSLEY HEALTHCARE FEDERATION CIC (GOLDTHORPE),38040463,"44,229.93"
Department of Health,NHS Barnsley CCG,30/09/2021,C&M-PMS DES Minor Surgery,PRC DELEGATED CO-COMMISSIONING,BARNSLEY HEALTHCARE FEDERATION CIC (GOLDTHORPE),38040463,127.86
Department of Health,NHS Barnsley CCG,30/09/2021,C&M-PMS Out of Hours Opt Outs,PRC DELEGATED CO-COMMISSIONING,BARNSLEY HEALTHCARE FEDERATION CIC (GOLDTHORPE),38040463,22.50
Department of Health,NHS Barnsley CCG,30/09/2021,C&M-PMS PCN DES Participation,PRC DELEGATED CO-COMMISSIONING,BARNSLEY HEALTHCARE FEDERATION CIC (GOLDTHORPE),38040463,802.47
Department of Health,NHS Barnsley CCG,30/09/2021,C&M-PMS Prem Healthcentre Rent,PRC DELEGATED CO-COMMISSIONING,BARNSLEY HEALTHCARE FEDERATION CIC (GOLDTHORPE),38040463,"12,404.58"
Department of Health,NHS Barnsley CCG,30/09/2021,C&M-PMS QOF Aspiration,PRC DELEGATED CO-COMMISSIONING,BARNSLEY HEALTHCARE FEDERATION CIC (GOLDTHORPE),38040463,"3,818.66"
Department of Health,NHS Barnsley CCG,30/09/2021,Hcare Srv Rec Fdtn Trust-Contract Baseline,ACUTE COMMISSIONING,BARNSLEY HOSPITAL NHS FOUNDATION TRUST,38064163,"17,695,941.00"
Department of Health,NHS Barnsley CCG,30/09/2021,Hcare Srv Rec Fdtn Trust-Contract Baseline,INTERMEDIATE CARE,BARNSLEY HOSPITAL NHS FOUNDATION TRUST,38064169,"203,751.00"
Department of Health,NHS Barnsley CCG,30/09/2021,Hcare Srv Rec Fdtn Trust-Contract Baseline,LONG TERM CONDITIONS,BARNSLEY HOSPITAL NHS FOUNDATION TRUST,38064173,"128,100.00"
Department of Health,NHS Barnsley CCG,30/09/2021,Cont Care-Learning Disab(<65),CHC ADULT JOINT FUNDED,BARNSLEY METROPOLITAN BOROUGH COUNCIL,38122850,"28,306.22"
Department of Health,NHS Barnsley CCG,30/09/2021,Cont Care- Children,CHC CHILD PERS HLTH BUD,BARNSLEY METROPOLITAN BOROUGH COUNCIL,38122858,"16,070.65"
Department of Health,NHS Barnsley CCG,30/09/2021,Cont Care- Children,CHC CHILDREN,BARNSLEY METROPOLITAN BOROUGH COUNCIL,38122858,"10,034.00"
Department of Health,NHS Barnsley CCG,30/09/2021,Cont Care- Children,CHC CHILDREN,BARNSLEY METROPOLITAN BOROUGH COUNCIL,38122869,"27,167.30"
Department of Health,NHS Barnsley CCG,30/09/2021,Clinical&Medical-Othe Public Sector,CHILD AND ADOLESCENT MENTAL HEALTH,BARNSLEY METROPOLITAN BOROUGH COUNCIL,38198879,"30,122.00"
Department of Health,NHS Barnsley CCG,30/09/2021,Clinical&Medical-Othe Public Sector,COMMISSIONING - NON ACUTE,BARNSLEY METROPOLITAN BOROUGH COUNCIL,38198879,"156,668.00"
Department of Health,NHS Barnsley CCG,30/09/2021,Clinical&Medical-Othe Public Sector,COMMUNITY SERVICES,BARNSLEY METROPOLITAN BOROUGH COUNCIL,38198879,"16,551.00"
Department of Health,NHS Barnsley CCG,30/09/2021,Clinical&Medical-Othe Public Sector,MENTAL HEALTH SERVICES - ADVOCACY,BARNSLEY METROPOLITAN BOROUGH COUNCIL,38198879,"9,883.00"
Department of Health,NHS Barnsley CCG,30/09/2021,Clinical&Medical-Voluntary Sector,CHILD AND ADOLESCENT MENTAL HEALTH,BARNSLEY METROPOLITAN BOROUGH COUNCIL,38198879,"-2,895.00"
Department of Health,NHS Barnsley CCG,30/09/2021,Local AuthorityRevenue-Non-Contract,COMMUNITY SERVICES,BARNSLEY METROPOLITAN BOROUGH COUNCIL,38198879,"-4,910.00"
Department of Health,NHS Barnsley CCG,30/09/2021,Services From Local Authorities,SAFEGUARDING,BARNSLEY METROPOLITAN BOROUGH COUNCIL,38198879,"4,059.00"
Department of Health,NHS Barnsley CCG,30/09/2021,Soc Care-Other Soc Care,COMMUNITY SERVICES,BARNSLEY METROPOLITAN BOROUGH COUNCIL,38198879,"226,142.00"
Department of Health,NHS Barnsley CCG,30/09/2021,Soc Care-Re-ablement services,COMMUNITY SERVICES,BARNSLEY METROPOLITAN BOROUGH COUNCIL,38198879,"202,439.00"
Department of Health,NHS Barnsley CCG,30/09/2021,Social Care-Res Long Stay Exp,LONG TERM CONDITIONS,BARNSLEY METROPOLITAN BOROUGH COUNCIL,38198879,"481,243.00"
Department of Health,NHS Barnsley CCG,30/09/2021,Social Care-Res Short Stay Exp,COMMUNITY SERVICES,BARNSLEY METROPOLITAN BOROUGH COUNCIL,38198879,"71,078.00"
Department of Health,NHS Barnsley CCG,30/09/2021,Cont Care- Prior Year Payments,ADULT JOINT FUNDED CONTINUING CARE,BARNSLEY METROPOLITAN BOROUGH COUNCIL,38214322,798.53
Department of Health,NHS Barnsley CCG,30/09/2021,Cont Care- Prior Year Payments,CHC AD FULL FUND PERS HLTH BUD,BARNSLEY METROPOLITAN BOROUGH COUNCIL,38214322,"1,065,739.47"
Department of Health,NHS Barnsley CCG,30/09/2021,Cont Care- Prior Year Payments,CHC AD JNT FUND PERS HLTH BUD,BARNSLEY METROPOLITAN BOROUGH COUNCIL,38214322,"211,212.27"
Department of Health,NHS Barnsley CCG,30/09/2021,Cont Care- Prior Year Payments,CHC ADULT FULLY FUNDED,BARNSLEY METROPOLITAN BOROUGH COUNCIL,38214322,"13,388.86"
Department of Health,NHS Barnsley CCG,30/09/2021,Cont Care- Prior Year Payments,CHC ADULT JOINT FUNDED,BARNSLEY METROPOLITAN BOROUGH COUNCIL,38214322,"214,334.83"
Department of Health,NHS Barnsley CCG,30/09/2021,Cont Care- Prior Year Payments,FUNDED NURSING CARE,BARNSLEY METROPOLITAN BOROUGH COUNCIL,38214322,814.50
Department of Health,NHS Barnsley CCG,30/09/2021,Prepymnts <1Yr,BALANCE SHEET,BARNSLEY METROPOLITAN BOROUGH COUNCIL,38214485,"28,208.50"
Department of Health,NHS Barnsley CCG,30/09/2021,Services From Local Authorities,CONTINUING HEALTHCARE ASSESSMENT & SUPPORT,BARNSLEY METROPOLITAN BOROUGH COUNCIL,38214485,"28,208.50"
Department of Health,NHS Barnsley CCG,30/09/2021,Cont Care- Prior Year Payments,CHC AD FULL FUND PERS HLTH BUD,BARNSLEY METROPOLITAN BOROUGH COUNCIL,38214509,"-136,319.80"
Department of Health,NHS Barnsley CCG,30/09/2021,C&M-APMS DES Extended Hours Access,PRC DELEGATED CO-COMMISSIONING,BHF - PCN,38091851,"31,698.00"
Department of Health,NHS Barnsley CCG,30/09/2021,C&M-APMS PCN DES Clinical Director,PRC DELEGATED CO-COMMISSIONING,BHF - PCN,38091851,"16,201.20"
Department of Health,NHS Barnsley CCG,30/09/2021,C&M- PCN DES CARE COORDINATOR,PRC DELEGATED CO-COMMISSIONING,BHF - PCN,38198880,"51,313.09"
Department of Health,NHS Barnsley CCG,30/09/2021,C&M- PCN DES Nursing Associate,PRC DELEGATED CO-COMMISSIONING,BHF - PCN,38198880,"9,213.98"
Department of Health,NHS Barnsley CCG,30/09/2021,C&M-PCN DES Clinical Pharmacist Advanced Practitioner,PRC DELEGATED CO-COMMISSIONING,BHF - PCN,38198880,"5,225.41"
Department of Health,NHS Barnsley CCG,30/09/2021,C&M-PCN DES HEALTH AND WELLBEING COACH,PRC DELEGATED CO-COMMISSIONING,BHF - PCN,38198880,"42,223.78"
Department of Health,NHS Barnsley CCG,30/09/2021,C&M-PCN DES PHARMACY TECHNICIANS,PRC DELEGATED CO-COMMISSIONING,BHF - PCN,38198880,"5,816.52"
Department of Health,NHS Barnsley CCG,30/09/2021,C&M-PCN DES Trainee Nursing Associate,PRC DELEGATED CO-COMMISSIONING,BHF - PCN,38198880,"4,782.72"
Department of Health,NHS Barnsley CCG,30/09/2021,C&M-PMS C&M-APMS PCN DES Physician Assoc,PRC DELEGATED CO-COMMISSIONING,BHF - PCN,38198880,"36,104.76"
Department of Health,NHS Barnsley CCG,30/09/2021,C&M-PMS PCN DES Clin Pharmacist,PRC DELEGATED CO-COMMISSIONING,BHF - PCN,38198880,"11,474.17"
Department of Health,NHS Barnsley CCG,30/09/2021,C&M-PMS PCN DES Soc Prescribing,PRC DELEGATED CO-COMMISSIONING,BHF - PCN,38198880,"16,806.11"
Department of Health,NHS Barnsley CCG,30/09/2021,Clinical&Medical-Commercial Sector,ACUTE COMMISSIONING,BMI HEALTHCARE LTD,37949389,"35,180.00"
Department of Health,NHS Barnsley CCG,30/09/2021,Clinical&Medical-Commercial Sector,ACUTE COMMISSIONING,BMI HEALTHCARE LTD,38214515,"-29,896.00"
Department of Health,NHS Barnsley CCG,30/09/2021,Clinical&Medical-Commercial Sector,ACUTE COMMISSIONING,BPAS,38091744,"26,020.00"
Department of Health,NHS Barnsley CCG,30/09/2021,C&M-GMS DES Learn Dsblty Hlth Chk,PRC DELEGATED CO-COMMISSIONING,NHS BARNSLEY CCG GP PRACTICE,38245481,"5,180.00"
Department of Health,NHS Barnsley CCG,30/09/2021,C&M-GMS Global Sum,PRC DELEGATED CO-COMMISSIONING,NHS BARNSLEY CCG GP PRACTICE,38245481,"101,221.24"
Department of Health,NHS Barnsley CCG,30/09/2021,C&M-GMS PCN DES Participation,PRC DELEGATED CO-COMMISSIONING,NHS BARNSLEY CCG GP PRACTICE,38245481,"1,965.88"
Department of Health,NHS Barnsley CCG,30/09/2021,C&M-GMS PCO Other,PRC DELEGATED CO-COMMISSIONING,NHS BARNSLEY CCG GP PRACTICE,38245481,701.90
Department of Health,NHS Barnsley CCG,30/09/2021,C&M-GMS Prem Actual Rent,PRC DELEGATED CO-COMMISSIONING,NHS BARNSLEY CCG GP PRACTICE,38245481,"12,500.00"
Department of Health,NHS Barnsley CCG,30/09/2021,C&M-GMS Prem Healthcentre Rent,PRC DELEGATED CO-COMMISSIONING,NHS BARNSLEY CCG GP PRACTICE,38245481,"3,354.78"
Department of Health,NHS Barnsley CCG,30/09/2021,C&M-GMS Prem Rates,PRC DELEGATED CO-COMMISSIONING,NHS BARNSLEY CCG GP PRACTICE,38245481,"2,790.00"
Department of Health,NHS Barnsley CCG,30/09/2021,C&M-GMS Prem Water Rates,PRC DELEGATED CO-COMMISSIONING,NHS BARNSLEY CCG GP PRACTICE,38245481,157.99
Department of Health,NHS Barnsley CCG,30/09/2021,C&M-GMS QOF Aspiration,PRC DELEGATED CO-COMMISSIONING,NHS BARNSLEY CCG GP PRACTICE,38245481,"10,605.71"
Department of Health,NHS Barnsley CCG,30/09/2021,Clinical&Medical-Voluntary Sector,CHILD AND ADOLESCENT MENTAL HEALTH,CHILDREN & YOUNG PEOPLES EMPOWERMENT PROJECT LTD,38248821,"81,849.00"
Department of Health,NHS Barnsley CCG,30/09/2021,Clinical&Medical-Voluntary Sector,CHILD AND ADOLESCENT MENTAL HEALTH,CHILDREN & YOUNG PEOPLES EMPOWERMENT PROJECT LTD,38248831,"-81,849.00"
Department of Health,NHS Barnsley CCG,30/09/2021,Clinical&Medical-Commercial Sector,ACUTE COMMISSIONING,CLAREMONT HOSPITAL,38214493,"44,600.00"
Department of Health,NHS Barnsley CCG,30/09/2021,Clinical&Medical-Voluntary Sector,CHILD AND ADOLESCENT MENTAL HEALTH,COMPASS,38110556,"74,663.58"
Department of Health,NHS Barnsley CCG,30/09/2021,C&M-GMS GP Statutory Levy,PRC DELEGATED CO-COMMISSIONING,NHS BARNSLEY CCG GP PRACTICE,38245495,-359.07
Department of Health,NHS Barnsley CCG,30/09/2021,C&M-GMS Voluntary Levy,PRC DELEGATED CO-COMMISSIONING,NHS BARNSLEY CCG GP PRACTICE,38245495,-35.91
Department of Health,NHS Barnsley CCG,30/09/2021,ME-GMS GP Pension EEs,PRC DELEGATED CO-COMMISSIONING,NHS BARNSLEY CCG GP PRACTICE,38245495,"-9,758.07"
Department of Health,NHS Barnsley CCG,30/09/2021,ME-GMS GP Pension EEs Adjustments,PRC DELEGATED CO-COMMISSIONING,NHS BARNSLEY CCG GP PRACTICE,38245495,"-11,231.16"
Department of Health,NHS Barnsley CCG,30/09/2021,ME-GMS GP Pension ERs,PRC DELEGATED CO-COMMISSIONING,NHS BARNSLEY CCG GP PRACTICE,38245495,"-10,038.73"
Department of Health,NHS Barnsley CCG,30/09/2021,ME-GMS GP Pension ERs Adjustments,PRC DELEGATED CO-COMMISSIONING,NHS BARNSLEY CCG GP PRACTICE,38245495,"-15,973.00"
Department of Health,NHS Barnsley CCG,30/09/2021,C&M-GMS Global Sum,PRC DELEGATED CO-COMMISSIONING,NHS BARNSLEY CCG GP PRACTICE,38259221,"96,888.33"
Department of Health,NHS Barnsley CCG,30/09/2021,C&M-GMS PCN DES Participation,PRC DELEGATED CO-COMMISSIONING,NHS BARNSLEY CCG GP PRACTICE,38259221,"1,808.77"
Department of Health,NHS Barnsley CCG,30/09/2021,C&M-GMS Prem Healthcentre Rent,PRC DELEGATED CO-COMMISSIONING,NHS BARNSLEY CCG GP PRACTICE,38259221,"27,635.34"
Department of Health,NHS Barnsley CCG,30/09/2021,C&M-GMS QOF Aspiration,PRC DELEGATED CO-COMMISSIONING,NHS BARNSLEY CCG GP PRACTICE,38259221,"9,168.13"
Department of Health,NHS Barnsley CCG,30/09/2021,ME-GMS GP Pension AVCs,PRC DELEGATED CO-COMMISSIONING,NHS BARNSLEY CCG GP PRACTICE,38259221,"4,793.34"
Department of Health,NHS Barnsley CCG,30/09/2021,ME-GMS GP Pension EEs Adjustments,PRC DELEGATED CO-COMMISSIONING,NHS BARNSLEY CCG GP PRACTICE,38259221,"1,405.05"
Department of Health,NHS Barnsley CCG,30/09/2021,ME-GMS GP Pension ERs Adjustments,PRC DELEGATED CO-COMMISSIONING,NHS BARNSLEY CCG GP PRACTICE,38259221,"1,256.90"
Department of Health,NHS Barnsley CCG,30/09/2021,Hcare Srv Rec Fdtn Trust-Contract Baseline,ACUTE COMMISSIONING,DONCASTER AND BASSETLAW HOSPITALS NHS FOUNDATION TRUST,38064283,"458,154.00"
Department of Health,NHS Barnsley CCG,30/09/2021,C&M-PMS Contract Value,PRC DELEGATED CO-COMMISSIONING,NHS BARNSLEY CCG GP PRACTICE,38044483,"99,611.98"
Department of Health,NHS Barnsley CCG,30/09/2021,C&M-PMS DES Learn Dsblty Hlth Chk,PRC DELEGATED CO-COMMISSIONING,NHS BARNSLEY CCG GP PRACTICE,38044483,420.00
Department of Health,NHS Barnsley CCG,30/09/2021,C&M-PMS Out of Hours Opt Outs,PRC DELEGATED CO-COMMISSIONING,NHS BARNSLEY CCG GP PRACTICE,38044483,6.31
Department of Health,NHS Barnsley CCG,30/09/2021,C&M-PMS PCN DES Participation,PRC DELEGATED CO-COMMISSIONING,NHS BARNSLEY CCG GP PRACTICE,38044483,"1,813.77"
Department of Health,NHS Barnsley CCG,30/09/2021,C&M-PMS PCO Seniority,PRC DELEGATED CO-COMMISSIONING,NHS BARNSLEY CCG GP PRACTICE,38044483,"16,657.91"
Department of Health,NHS Barnsley CCG,30/09/2021,C&M-PMS Prem Healthcentre Rent,PRC DELEGATED CO-COMMISSIONING,NHS BARNSLEY CCG GP PRACTICE,38044483,"18,613.68"
Department of Health,NHS Barnsley CCG,30/09/2021,C&M-PMS Prem Notional Rent,PRC DELEGATED CO-COMMISSIONING,NHS BARNSLEY CCG GP PRACTICE,38044483,"2,062.50"
Department of Health,NHS Barnsley CCG,30/09/2021,C&M-PMS Prem Rates,PRC DELEGATED CO-COMMISSIONING,NHS BARNSLEY CCG GP PRACTICE,38044483,283.00
Department of Health,NHS Barnsley CCG,30/09/2021,C&M-PMS QOF Aspiration,PRC DELEGATED CO-COMMISSIONING,NHS BARNSLEY CCG GP PRACTICE,38044483,"11,123.30"
Department of Health,NHS Barnsley CCG,30/09/2021,ME-PMS GP Pension EEs-PMS,PRC DELEGATED CO-COMMISSIONING,NHS BARNSLEY CCG GP PRACTICE,38044483,"2,972.50"
Department of Health,NHS Barnsley CCG,30/09/2021,ME-PMS GP Pension ERs-PMS,PRC DELEGATED CO-COMMISSIONING,NHS BARNSLEY CCG GP PRACTICE,38044483,"2,947.90"
Department of Health,NHS Barnsley CCG,30/09/2021,C&M-PMS Contract Value,PRC DELEGATED CO-COMMISSIONING,NHS BARNSLEY CCG GP PRACTICE,38044484,"-1,877.97"
Department of Health,NHS Barnsley CCG,30/09/2021,C&M-PMS GP Statutory Levy,PRC DELEGATED CO-COMMISSIONING,NHS BARNSLEY CCG GP PRACTICE,38044484,-349.27
Department of Health,NHS Barnsley CCG,30/09/2021,C&M-PMS Out of Hours Opt Outs,PRC DELEGATED CO-COMMISSIONING,NHS BARNSLEY CCG GP PRACTICE,38044484,"-4,596.29"
Department of Health,NHS Barnsley CCG,30/09/2021,C&M-PMS Prem Healthcentre Rent,PRC DELEGATED CO-COMMISSIONING,NHS BARNSLEY CCG GP PRACTICE,38044484,-106.44
Department of Health,NHS Barnsley CCG,30/09/2021,C&M-PMS Voluntary Levy,PRC DELEGATED CO-COMMISSIONING,NHS BARNSLEY CCG GP PRACTICE,38044484,-34.93
Department of Health,NHS Barnsley CCG,30/09/2021,ME-PMS GP Pension EEs-PMS,PRC DELEGATED CO-COMMISSIONING,NHS BARNSLEY CCG GP PRACTICE,38044484,"-13,074.51"
Department of Health,NHS Barnsley CCG,30/09/2021,ME-PMS GP Pension ERs-PMS,PRC DELEGATED CO-COMMISSIONING,NHS BARNSLEY CCG GP PRACTICE,38044484,"-12,438.71"
Department of Health,NHS Barnsley CCG,30/09/2021,C&M-PMS Contract Value,PRC DELEGATED CO-COMMISSIONING,NHS BARNSLEY CCG GP PRACTICE,38044485,"66,351.01"
Department of Health,NHS Barnsley CCG,30/09/2021,C&M-PMS Out of Hours Opt Outs,PRC DELEGATED CO-COMMISSIONING,NHS BARNSLEY CCG GP PRACTICE,38044485,78.09
Department of Health,NHS Barnsley CCG,30/09/2021,C&M-PMS PCN DES Participation,PRC DELEGATED CO-COMMISSIONING,NHS BARNSLEY CCG GP PRACTICE,38044485,"1,160.28"
Department of Health,NHS Barnsley CCG,30/09/2021,C&M-PMS Prem Healthcentre Rent,PRC DELEGATED CO-COMMISSIONING,NHS BARNSLEY CCG GP PRACTICE,38044485,"22,036.84"
Department of Health,NHS Barnsley CCG,30/09/2021,C&M-PMS QOF Aspiration,PRC DELEGATED CO-COMMISSIONING,NHS BARNSLEY CCG GP PRACTICE,38044485,"6,516.93"
Department of Health,NHS Barnsley CCG,30/09/2021,C&M-GMS DES Learn Dsblty Hlth Chk,PRC DELEGATED CO-COMMISSIONING,NHS BARNSLEY CCG GP PRACTICE,38245493,"1,960.00"
Department of Health,NHS Barnsley CCG,30/09/2021,C&M-GMS Global Sum,PRC DELEGATED CO-COMMISSIONING,NHS BARNSLEY CCG GP PRACTICE,38245493,"83,370.25"
Department of Health,NHS Barnsley CCG,30/09/2021,C&M-GMS PCN DES Participation,PRC DELEGATED CO-COMMISSIONING,NHS BARNSLEY CCG GP PRACTICE,38245493,"1,590.67"
Department of Health,NHS Barnsley CCG,30/09/2021,C&M-GMS PCO Other,PRC DELEGATED CO-COMMISSIONING,NHS BARNSLEY CCG GP PRACTICE,38245493,618.50
Department of Health,NHS Barnsley CCG,30/09/2021,C&M-GMS Prem Notional Rent,PRC DELEGATED CO-COMMISSIONING,NHS BARNSLEY CCG GP PRACTICE,38245493,"4,831.25"
Department of Health,NHS Barnsley CCG,30/09/2021,C&M-GMS Prem Rates,PRC DELEGATED CO-COMMISSIONING,NHS BARNSLEY CCG GP PRACTICE,38245493,848.00
Department of Health,NHS Barnsley CCG,30/09/2021,C&M-GMS QOF Aspiration,PRC DELEGATED CO-COMMISSIONING,NHS BARNSLEY CCG GP PRACTICE,38245493,"9,200.75"
Department of Health,NHS Barnsley CCG,30/09/2021,C&M-PMS Contract Value,PRC DELEGATED CO-COMMISSIONING,NHS BARNSLEY CCG GP PRACTICE,38040477,"144,629.67"
Department of Health,NHS Barnsley CCG,30/09/2021,C&M-PMS DES Learn Dsblty Hlth Chk,PRC DELEGATED CO-COMMISSIONING,NHS BARNSLEY CCG GP PRACTICE,38040477,980.00
Department of Health,NHS Barnsley CCG,30/09/2021,C&M-PMS Out of Hours Opt Outs,PRC DELEGATED CO-COMMISSIONING,NHS BARNSLEY CCG GP PRACTICE,38040477,17.64
Department of Health,NHS Barnsley CCG,30/09/2021,C&M-PMS PCN DES Participation,PRC DELEGATED CO-COMMISSIONING,NHS BARNSLEY CCG GP PRACTICE,38040477,"2,631.48"
Department of Health,NHS Barnsley CCG,30/09/2021,C&M-PMS Prem Notional Rent,PRC DELEGATED CO-COMMISSIONING,NHS BARNSLEY CCG GP PRACTICE,38040477,"6,333.33"
Department of Health,NHS Barnsley CCG,30/09/2021,C&M-PMS Prem Rates,PRC DELEGATED CO-COMMISSIONING,NHS BARNSLEY CCG GP PRACTICE,38040477,"1,737.00"
Department of Health,NHS Barnsley CCG,30/09/2021,C&M-PMS QOF Aspiration,PRC DELEGATED CO-COMMISSIONING,NHS BARNSLEY CCG GP PRACTICE,38040477,"15,747.91"
Department of Health,NHS Barnsley CCG,30/09/2021,C&M-PMS Contract Value,PRC DELEGATED CO-COMMISSIONING,NHS BARNSLEY CCG GP PRACTICE,38044478,-972.93
Department of Health,NHS Barnsley CCG,30/09/2021,C&M-PMS GP Statutory Levy,PRC DELEGATED CO-COMMISSIONING,NHS BARNSLEY CCG GP PRACTICE,38044478,-570.47
Department of Health,NHS Barnsley CCG,30/09/2021,C&M-PMS Out of Hours Opt Outs,PRC DELEGATED CO-COMMISSIONING,NHS BARNSLEY CCG GP PRACTICE,38044478,"-6,633.67"
Department of Health,NHS Barnsley CCG,30/09/2021,C&M-PMS Voluntary Levy,PRC DELEGATED CO-COMMISSIONING,NHS BARNSLEY CCG GP PRACTICE,38044478,-57.05
Department of Health,NHS Barnsley CCG,30/09/2021,ME - PMS GP Prior Year ERs,PRC DELEGATED CO-COMMISSIONING,NHS BARNSLEY CCG GP PRACTICE,38044478,-655.54
Department of Health,NHS Barnsley CCG,30/09/2021,ME-PMS GP Pension EEs-PMS,PRC DELEGATED CO-COMMISSIONING,NHS BARNSLEY CCG GP PRACTICE,38044478,"-13,162.53"
Department of Health,NHS Barnsley CCG,30/09/2021,ME-PMS GP Pension ERs-PMS,PRC DELEGATED CO-COMMISSIONING,NHS BARNSLEY CCG GP PRACTICE,38044478,"-13,780.81"
Department of Health,NHS Barnsley CCG,30/09/2021,ME-PMS GP Prior Year EEs,PRC DELEGATED CO-COMMISSIONING,NHS BARNSLEY CCG GP PRACTICE,38044478,-861.60
Department of Health,NHS Barnsley CCG,30/09/2021,C&M-PMS Cost of Drugs -Dispensing,LOCAL ENHANCED SERVICES,NHS BARNSLEY CCG GP PRACTICE,38265747,"78,931.29"
Department of Health,NHS Barnsley CCG,30/09/2021,C&M-PMS Prof fees Dispensing,PRC DELEGATED CO-COMMISSIONING,NHS BARNSLEY CCG GP PRACTICE,38265747,"28,635.82"
Department of Health,NHS Barnsley CCG,30/09/2021,C&M-GMS DES Learn Dsblty Hlth Chk,PRC DELEGATED CO-COMMISSIONING,NHS BARNSLEY CCG GP PRACTICE,38246717,280.00
Department of Health,NHS Barnsley CCG,30/09/2021,C&M-GMS Global Sum,PRC DELEGATED CO-COMMISSIONING,NHS BARNSLEY CCG GP PRACTICE,38246717,"28,071.05"
Department of Health,NHS Barnsley CCG,30/09/2021,C&M-GMS PCN DES Participation,PRC DELEGATED CO-COMMISSIONING,NHS BARNSLEY CCG GP PRACTICE,38246717,534.53
Department of Health,NHS Barnsley CCG,30/09/2021,C&M-GMS PCO Other,PRC DELEGATED CO-COMMISSIONING,NHS BARNSLEY CCG GP PRACTICE,38246717,247.80
Department of Health,NHS Barnsley CCG,30/09/2021,C&M-GMS Prem Healthcentre Rent,PRC DELEGATED CO-COMMISSIONING,NHS BARNSLEY CCG GP PRACTICE,38246717,"3,989.29"
Department of Health,NHS Barnsley CCG,30/09/2021,C&M-GMS QOF Aspiration,PRC DELEGATED CO-COMMISSIONING,NHS BARNSLEY CCG GP PRACTICE,38246717,"2,909.11"
Department of Health,NHS Barnsley CCG,30/09/2021,C&M-GMS Global Sum,PRC DELEGATED CO-COMMISSIONING,NHS BARNSLEY CCG GP PRACTICE,38245485,"46,839.75"
Department of Health,NHS Barnsley CCG,30/09/2021,C&M-GMS PCN DES Participation,PRC DELEGATED CO-COMMISSIONING,NHS BARNSLEY CCG GP PRACTICE,38245485,909.92
Department of Health,NHS Barnsley CCG,30/09/2021,C&M-GMS PCO Doctors Ret Scheme,PRC DELEGATED CO-COMMISSIONING,NHS BARNSLEY CCG GP PRACTICE,38245485,666.64
Department of Health,NHS Barnsley CCG,30/09/2021,C&M-GMS PCO Other,PRC DELEGATED CO-COMMISSIONING,NHS BARNSLEY CCG GP PRACTICE,38245485,353.70
Department of Health,NHS Barnsley CCG,30/09/2021,C&M-GMS Prem Notional Rent,PRC DELEGATED CO-COMMISSIONING,NHS BARNSLEY CCG GP PRACTICE,38245485,"1,770.83"
Department of Health,NHS Barnsley CCG,30/09/2021,C&M-GMS Prem Rates,PRC DELEGATED CO-COMMISSIONING,NHS BARNSLEY CCG GP PRACTICE,38245485,"1,142.00"
Department of Health,NHS Barnsley CCG,30/09/2021,C&M-GMS Prem Water Rates,PRC DELEGATED CO-COMMISSIONING,NHS BARNSLEY CCG GP PRACTICE,38245485,179.20
Department of Health,NHS Barnsley CCG,30/09/2021,C&M-GMS QOF Aspiration,PRC DELEGATED CO-COMMISSIONING,NHS BARNSLEY CCG GP PRACTICE,38245485,"4,673.20"
Department of Health,NHS Barnsley CCG,30/09/2021,C&M-PMS Contract Value,PRC DELEGATED CO-COMMISSIONING,NHS BARNSLEY CCG GP PRACTICE,38040475,"41,693.11"
Department of Health,NHS Barnsley CCG,30/09/2021,C&M-PMS Out of Hours Opt Outs,PRC DELEGATED CO-COMMISSIONING,NHS BARNSLEY CCG GP PRACTICE,38040475,26.00
Department of Health,NHS Barnsley CCG,30/09/2021,C&M-PMS PCN DES Participation,PRC DELEGATED CO-COMMISSIONING,NHS BARNSLEY CCG GP PRACTICE,38040475,759.15
Department of Health,NHS Barnsley CCG,30/09/2021,C&M-PMS Prem Healthcentre Rent,PRC DELEGATED CO-COMMISSIONING,NHS BARNSLEY CCG GP PRACTICE,38040475,"3,823.07"
Department of Health,NHS Barnsley CCG,30/09/2021,C&M-PMS Prem Notional Rent,PRC DELEGATED CO-COMMISSIONING,NHS BARNSLEY CCG GP PRACTICE,38040475,"8,808.34"
Department of Health,NHS Barnsley CCG,30/09/2021,C&M-PMS Prem Rates,PRC DELEGATED CO-COMMISSIONING,NHS BARNSLEY CCG GP PRACTICE,38040475,"1,100.69"
Department of Health,NHS Barnsley CCG,30/09/2021,C&M-PMS QOF Aspiration,PRC DELEGATED CO-COMMISSIONING,NHS BARNSLEY CCG GP PRACTICE,38040475,"2,831.30"
Department of Health,NHS Barnsley CCG,30/09/2021,C&M-GMS DES Learn Dsblty Hlth Chk,PRC DELEGATED CO-COMMISSIONING,NHS BARNSLEY CCG GP PRACTICE,38245487,420.00
Department of Health,NHS Barnsley CCG,30/09/2021,C&M-GMS Global Sum,PRC DELEGATED CO-COMMISSIONING,NHS BARNSLEY CCG GP PRACTICE,38245487,"117,431.44"
Department of Health,NHS Barnsley CCG,30/09/2021,C&M-GMS PCN DES Participation,PRC DELEGATED CO-COMMISSIONING,NHS BARNSLEY CCG GP PRACTICE,38245487,"2,263.26"
Department of Health,NHS Barnsley CCG,30/09/2021,C&M-GMS Prem Notional Rent,PRC DELEGATED CO-COMMISSIONING,NHS BARNSLEY CCG GP PRACTICE,38245487,"7,885.41"
Department of Health,NHS Barnsley CCG,30/09/2021,C&M-GMS QOF Aspiration,PRC DELEGATED CO-COMMISSIONING,NHS BARNSLEY CCG GP PRACTICE,38245487,"12,174.10"
Department of Health,NHS Barnsley CCG,30/09/2021,C&M-GMS GP Statutory Levy,PRC DELEGATED CO-COMMISSIONING,NHS BARNSLEY CCG GP PRACTICE,38245488,-451.27
Department of Health,NHS Barnsley CCG,30/09/2021,C&M-GMS Voluntary Levy,PRC DELEGATED CO-COMMISSIONING,NHS BARNSLEY CCG GP PRACTICE,38245488,-45.13
Department of Health,NHS Barnsley CCG,30/09/2021,ME-GMS GP Pension Added Years EEs,PRC DELEGATED CO-COMMISSIONING,NHS BARNSLEY CCG GP PRACTICE,38245488,-681.25
Department of Health,NHS Barnsley CCG,30/09/2021,ME-GMS GP Pension EEs,PRC DELEGATED CO-COMMISSIONING,NHS BARNSLEY CCG GP PRACTICE,38245488,"-13,933.56"
Department of Health,NHS Barnsley CCG,30/09/2021,ME-GMS GP Pension ERs,PRC DELEGATED CO-COMMISSIONING,NHS BARNSLEY CCG GP PRACTICE,38245488,"-14,131.87"
Department of Health,NHS Barnsley CCG,30/09/2021,C&M-GMS DES Learn Dsblty Hlth Chk,PRC DELEGATED CO-COMMISSIONING,NHS BARNSLEY CCG GP PRACTICE,38245479,560.00
Department of Health,NHS Barnsley CCG,30/09/2021,C&M-GMS Global Sum,PRC DELEGATED CO-COMMISSIONING,NHS BARNSLEY CCG GP PRACTICE,38245479,"104,877.11"
Department of Health,NHS Barnsley CCG,30/09/2021,C&M-GMS PCN DES Participation,PRC DELEGATED CO-COMMISSIONING,NHS BARNSLEY CCG GP PRACTICE,38245479,"2,013.15"
Department of Health,NHS Barnsley CCG,30/09/2021,C&M-GMS Prem Notional Rent,PRC DELEGATED CO-COMMISSIONING,NHS BARNSLEY CCG GP PRACTICE,38245479,"13,593.75"
Department of Health,NHS Barnsley CCG,30/09/2021,C&M-GMS Prem Rates,PRC DELEGATED CO-COMMISSIONING,NHS BARNSLEY CCG GP PRACTICE,38245479,"3,122.00"
Department of Health,NHS Barnsley CCG,30/09/2021,C&M-GMS QOF Aspiration,PRC DELEGATED CO-COMMISSIONING,NHS BARNSLEY CCG GP PRACTICE,38245479,"11,182.52"
Department of Health,NHS Barnsley CCG,30/09/2021,C&M-GMS DES Learn Dsblty Hlth Chk,PRC DELEGATED CO-COMMISSIONING,NHS BARNSLEY CCG GP PRACTICE,38237477,140.00
Department of Health,NHS Barnsley CCG,30/09/2021,C&M-GMS Global Sum,PRC DELEGATED CO-COMMISSIONING,NHS BARNSLEY CCG GP PRACTICE,38237477,"89,673.96"
Department of Health,NHS Barnsley CCG,30/09/2021,C&M-GMS PCN DES Participation,PRC DELEGATED CO-COMMISSIONING,NHS BARNSLEY CCG GP PRACTICE,38237477,"1,700.34"
Department of Health,NHS Barnsley CCG,30/09/2021,C&M-GMS PCO Other,PRC DELEGATED CO-COMMISSIONING,NHS BARNSLEY CCG GP PRACTICE,38237477,650.40
Department of Health,NHS Barnsley CCG,30/09/2021,C&M-GMS Prem Rates,PRC DELEGATED CO-COMMISSIONING,NHS BARNSLEY CCG GP PRACTICE,38237477,"17,204.00"
Department of Health,NHS Barnsley CCG,30/09/2021,C&M-GMS QOF Aspiration,PRC DELEGATED CO-COMMISSIONING,NHS BARNSLEY CCG GP PRACTICE,38237477,"10,813.91"
Department of Health,NHS Barnsley CCG,30/09/2021,C&M-PMS Contract Value,PRC DELEGATED CO-COMMISSIONING,NHS BARNSLEY CCG GP PRACTICE,38040465,"158,504.44"
Department of Health,NHS Barnsley CCG,30/09/2021,C&M-PMS Out of Hours Opt Outs,PRC DELEGATED CO-COMMISSIONING,NHS BARNSLEY CCG GP PRACTICE,38040465,4.84
Department of Health,NHS Barnsley CCG,30/09/2021,C&M-PMS PCN DES Participation,PRC DELEGATED CO-COMMISSIONING,NHS BARNSLEY CCG GP PRACTICE,38040465,"2,848.86"
Department of Health,NHS Barnsley CCG,30/09/2021,C&M-PMS Prem Notional Rent,PRC DELEGATED CO-COMMISSIONING,NHS BARNSLEY CCG GP PRACTICE,38040465,"11,879.17"
Department of Health,NHS Barnsley CCG,30/09/2021,C&M-PMS QOF Aspiration,PRC DELEGATED CO-COMMISSIONING,NHS BARNSLEY CCG GP PRACTICE,38040465,"16,587.37"
Department of Health,NHS Barnsley CCG,30/09/2021,ME - PMS GP Prior Year ERs,PRC DELEGATED CO-COMMISSIONING,NHS BARNSLEY CCG GP PRACTICE,38040465,13.66
Department of Health,NHS Barnsley CCG,30/09/2021,ME-PMS GP Prior Year EEs,PRC DELEGATED CO-COMMISSIONING,NHS BARNSLEY CCG GP PRACTICE,38040465,"3,213.32"
Department of Health,NHS Barnsley CCG,30/09/2021,C&M-PMS Contract Value,PRC DELEGATED CO-COMMISSIONING,NHS BARNSLEY CCG GP PRACTICE,38040466,-105.05
Department of Health,NHS Barnsley CCG,30/09/2021,C&M-PMS GP Statutory Levy,PRC DELEGATED CO-COMMISSIONING,NHS BARNSLEY CCG GP PRACTICE,38040466,-572.90
Department of Health,NHS Barnsley CCG,30/09/2021,C&M-PMS Out of Hours Opt Outs,PRC DELEGATED CO-COMMISSIONING,NHS BARNSLEY CCG GP PRACTICE,38040466,"-7,244.17"
Department of Health,NHS Barnsley CCG,30/09/2021,C&M-PMS Voluntary Levy,PRC DELEGATED CO-COMMISSIONING,NHS BARNSLEY CCG GP PRACTICE,38040466,-57.29
Department of Health,NHS Barnsley CCG,30/09/2021,ME - PMS GP Prior Year ERs,PRC DELEGATED CO-COMMISSIONING,NHS BARNSLEY CCG GP PRACTICE,38040466,-254.61
Department of Health,NHS Barnsley CCG,30/09/2021,ME-PMS GP Pension Added Years EEs,PRC DELEGATED CO-COMMISSIONING,NHS BARNSLEY CCG GP PRACTICE,38040466,-393.33
Department of Health,NHS Barnsley CCG,30/09/2021,ME-PMS GP Pension EEs-PMS,PRC DELEGATED CO-COMMISSIONING,NHS BARNSLEY CCG GP PRACTICE,38040466,"-13,345.01"
Department of Health,NHS Barnsley CCG,30/09/2021,ME-PMS GP Pension ERs-PMS,PRC DELEGATED CO-COMMISSIONING,NHS BARNSLEY CCG GP PRACTICE,38040466,"-14,461.18"
Department of Health,NHS Barnsley CCG,30/09/2021,ME-PMS GP Prior Year EEs,PRC DELEGATED CO-COMMISSIONING,NHS BARNSLEY CCG GP PRACTICE,38040466,-239.02
Department of Health,NHS Barnsley CCG,30/09/2021,C&M-PMS Contract Value,PRC DELEGATED CO-COMMISSIONING,NHS BARNSLEY CCG GP PRACTICE,38044481,"114,220.92"
Department of Health,NHS Barnsley CCG,30/09/2021,C&M-PMS DES Learn Dsblty Hlth Chk,PRC DELEGATED CO-COMMISSIONING,NHS BARNSLEY CCG GP PRACTICE,38044481,"1,120.00"
Department of Health,NHS Barnsley CCG,30/09/2021,C&M-PMS Out of Hours Opt Outs,PRC DELEGATED CO-COMMISSIONING,NHS BARNSLEY CCG GP PRACTICE,38044481,109.10
Department of Health,NHS Barnsley CCG,30/09/2021,C&M-PMS PCN DES Participation,PRC DELEGATED CO-COMMISSIONING,NHS BARNSLEY CCG GP PRACTICE,38044481,"2,065.71"
Department of Health,NHS Barnsley CCG,30/09/2021,C&M-PMS PCO Other,PRC DELEGATED CO-COMMISSIONING,NHS BARNSLEY CCG GP PRACTICE,38044481,748.00
Department of Health,NHS Barnsley CCG,30/09/2021,C&M-PMS Prem Actual Rent,PRC DELEGATED CO-COMMISSIONING,NHS BARNSLEY CCG GP PRACTICE,38044481,"13,654.17"
Department of Health,NHS Barnsley CCG,30/09/2021,C&M-PMS Prem Rates,PRC DELEGATED CO-COMMISSIONING,NHS BARNSLEY CCG GP PRACTICE,38044481,"2,560.00"
Department of Health,NHS Barnsley CCG,30/09/2021,C&M-PMS QOF Aspiration,PRC DELEGATED CO-COMMISSIONING,NHS BARNSLEY CCG GP PRACTICE,38044481,"11,658.46"
Department of Health,NHS Barnsley CCG,30/09/2021,C&M-PMS Contract Value,PRC DELEGATED CO-COMMISSIONING,NHS BARNSLEY CCG GP PRACTICE,38044482,-642.09
Department of Health,NHS Barnsley CCG,30/09/2021,C&M-PMS GP Statutory Levy,PRC DELEGATED CO-COMMISSIONING,NHS BARNSLEY CCG GP PRACTICE,38044482,-412.13
Department of Health,NHS Barnsley CCG,30/09/2021,C&M-PMS Out of Hours Opt Outs,PRC DELEGATED CO-COMMISSIONING,NHS BARNSLEY CCG GP PRACTICE,38044482,"-5,199.01"
Department of Health,NHS Barnsley CCG,30/09/2021,C&M-PMS Voluntary Levy,PRC DELEGATED CO-COMMISSIONING,NHS BARNSLEY CCG GP PRACTICE,38044482,-41.21
Department of Health,NHS Barnsley CCG,30/09/2021,ME-PMS GP Pension EEs-PMS,PRC DELEGATED CO-COMMISSIONING,NHS BARNSLEY CCG GP PRACTICE,38044482,"-10,826.67"
Department of Health,NHS Barnsley CCG,30/09/2021,ME-PMS GP Pension ERs-PMS,PRC DELEGATED CO-COMMISSIONING,NHS BARNSLEY CCG GP PRACTICE,38044482,"-11,096.58"
Department of Health,NHS Barnsley CCG,30/09/2021,C&M-PMS Contract Value,PRC DELEGATED CO-COMMISSIONING,NHS BARNSLEY CCG GP PRACTICE,38044491,"100,154.75"
Department of Health,NHS Barnsley CCG,30/09/2021,C&M-PMS DES Learn Dsblty Hlth Chk,PRC DELEGATED CO-COMMISSIONING,NHS BARNSLEY CCG GP PRACTICE,38044491,420.00
Department of Health,NHS Barnsley CCG,30/09/2021,C&M-PMS Out of Hours Opt Outs,PRC DELEGATED CO-COMMISSIONING,NHS BARNSLEY CCG GP PRACTICE,38044491,8.38
Department of Health,NHS Barnsley CCG,30/09/2021,C&M-PMS PCN DES Participation,PRC DELEGATED CO-COMMISSIONING,NHS BARNSLEY CCG GP PRACTICE,38044491,"1,817.09"
Department of Health,NHS Barnsley CCG,30/09/2021,C&M-PMS Prem Actual Rent,PRC DELEGATED CO-COMMISSIONING,NHS BARNSLEY CCG GP PRACTICE,38044491,"8,566.67"
Department of Health,NHS Barnsley CCG,30/09/2021,C&M-PMS QOF Aspiration,PRC DELEGATED CO-COMMISSIONING,NHS BARNSLEY CCG GP PRACTICE,38044491,"8,766.62"
Department of Health,NHS Barnsley CCG,30/09/2021,C&M-GMS DES Learn Dsblty Hlth Chk,PRC DELEGATED CO-COMMISSIONING,NHS BARNSLEY CCG GP PRACTICE,38245483,140.00
Department of Health,NHS Barnsley CCG,30/09/2021,C&M-GMS Global Sum,PRC DELEGATED CO-COMMISSIONING,NHS BARNSLEY CCG GP PRACTICE,38245483,"67,695.06"
Department of Health,NHS Barnsley CCG,30/09/2021,C&M-GMS PCN DES Participation,PRC DELEGATED CO-COMMISSIONING,NHS BARNSLEY CCG GP PRACTICE,38245483,"1,280.13"
Department of Health,NHS Barnsley CCG,30/09/2021,C&M-GMS Prem Healthcentre Rent,PRC DELEGATED CO-COMMISSIONING,NHS BARNSLEY CCG GP PRACTICE,38245483,"25,446.46"
Department of Health,NHS Barnsley CCG,30/09/2021,C&M-GMS QOF Aspiration,PRC DELEGATED CO-COMMISSIONING,NHS BARNSLEY CCG GP PRACTICE,38245483,"7,148.16"
Department of Health,NHS Barnsley CCG,30/09/2021,C&M-PMS Contract Value,PRC DELEGATED CO-COMMISSIONING,NHS BARNSLEY CCG GP PRACTICE,38040467,"113,672.56"
Department of Health,NHS Barnsley CCG,30/09/2021,C&M-PMS Out of Hours Opt Outs,PRC DELEGATED CO-COMMISSIONING,NHS BARNSLEY CCG GP PRACTICE,38040467,1.63
Department of Health,NHS Barnsley CCG,30/09/2021,C&M-PMS PCN DES Participation,PRC DELEGATED CO-COMMISSIONING,NHS BARNSLEY CCG GP PRACTICE,38040467,"2,069.92"
Department of Health,NHS Barnsley CCG,30/09/2021,C&M-PMS PCO Locum Adop/Pat/Mat,PRC DELEGATED CO-COMMISSIONING,NHS BARNSLEY CCG GP PRACTICE,38040467,"2,286.12"
Department of Health,NHS Barnsley CCG,30/09/2021,C&M-PMS PCO Locum Sickness,PRC DELEGATED CO-COMMISSIONING,NHS BARNSLEY CCG GP PRACTICE,38040467,"11,436.28"
Department of Health,NHS Barnsley CCG,30/09/2021,C&M-PMS Prem Rates,PRC DELEGATED CO-COMMISSIONING,NHS BARNSLEY CCG GP PRACTICE,38040467,"2,739.00"
Department of Health,NHS Barnsley CCG,30/09/2021,C&M-PMS QOF Aspiration,PRC DELEGATED CO-COMMISSIONING,NHS BARNSLEY CCG GP PRACTICE,38040467,"12,568.94"
Department of Health,NHS Barnsley CCG,30/09/2021,ME-PMS GP Prior Year EEs,PRC DELEGATED CO-COMMISSIONING,NHS BARNSLEY CCG GP PRACTICE,38040467,"1,802.88"
Department of Health,NHS Barnsley CCG,30/09/2021,C&M-GMS DES Learn Dsblty Hlth Chk,PRC DELEGATED CO-COMMISSIONING,NHS BARNSLEY CCG GP PRACTICE,38259220,560.00
Department of Health,NHS Barnsley CCG,30/09/2021,C&M-GMS Global Sum,PRC DELEGATED CO-COMMISSIONING,NHS BARNSLEY CCG GP PRACTICE,38259220,"55,843.91"
Department of Health,NHS Barnsley CCG,30/09/2021,C&M-GMS LES Care Home/Nursing Home,LOCAL ENHANCED SERVICES,NHS BARNSLEY CCG GP PRACTICE,38259220,"2,700.00"
Department of Health,NHS Barnsley CCG,30/09/2021,C&M-GMS PCN DES Participation,PRC DELEGATED CO-COMMISSIONING,NHS BARNSLEY CCG GP PRACTICE,38259220,"5,305.74"
Department of Health,NHS Barnsley CCG,30/09/2021,C&M-GMS Prem Notional Rent,PRC DELEGATED CO-COMMISSIONING,NHS BARNSLEY CCG GP PRACTICE,38259220,"2,750.00"
Department of Health,NHS Barnsley CCG,30/09/2021,C&M-GMS Prem Rates,PRC DELEGATED CO-COMMISSIONING,NHS BARNSLEY CCG GP PRACTICE,38259220,416.00
Department of Health,NHS Barnsley CCG,30/09/2021,C&M-GMS QOF Aspiration,PRC DELEGATED CO-COMMISSIONING,NHS BARNSLEY CCG GP PRACTICE,38259220,"4,993.02"
Department of Health,NHS Barnsley CCG,30/09/2021,ME - GMS GP Prior Year ERs,PRC DELEGATED CO-COMMISSIONING,NHS BARNSLEY CCG GP PRACTICE,38259220,752.46
Department of Health,NHS Barnsley CCG,30/09/2021,ME-GMS GP Prior Year EEs,PRC DELEGATED CO-COMMISSIONING,NHS BARNSLEY CCG GP PRACTICE,38259220,758.73
Department of Health,NHS Barnsley CCG,30/09/2021,Clinical&Medical-Commercial Sector,LEARNING DIFFICULTIES,ELYSIUM HEALTHCARE LTD,37949285,"30,972.72"
Department of Health,NHS Barnsley CCG,31/08/2021,Clinical&Medical-Commercial Sector,LEARNING DIFFICULTIES,ELYSIUM HEALTHCARE LTD,37942628,"43,029.24"
Department of Health,NHS Barnsley CCG,31/08/2021,Clinical&Medical-Commercial Sector,Mental Health Services - S117 Mental Health,ELYSIUM HEALTHCARE LTD,37942623,"28,903.78"
Department of Health,NHS Barnsley CCG,30/09/2021,C&M-PMS Contract Value,PRC DELEGATED CO-COMMISSIONING,NHS BARNSLEY CCG GP PRACTICE,38044479,"44,881.42"
Department of Health,NHS Barnsley CCG,30/09/2021,C&M-PMS Out of Hours Opt Outs,PRC DELEGATED CO-COMMISSIONING,NHS BARNSLEY CCG GP PRACTICE,38044479,13.71
Department of Health,NHS Barnsley CCG,30/09/2021,C&M-PMS PCN DES Participation,PRC DELEGATED CO-COMMISSIONING,NHS BARNSLEY CCG GP PRACTICE,38044479,792.40
Department of Health,NHS Barnsley CCG,30/09/2021,C&M-PMS PCO Other,PRC DELEGATED CO-COMMISSIONING,NHS BARNSLEY CCG GP PRACTICE,38044479,338.60
Department of Health,NHS Barnsley CCG,30/09/2021,C&M-PMS Prem Rates,PRC DELEGATED CO-COMMISSIONING,NHS BARNSLEY CCG GP PRACTICE,38044479,"1,996.00"
Department of Health,NHS Barnsley CCG,30/09/2021,C&M-PMS QOF Aspiration,PRC DELEGATED CO-COMMISSIONING,NHS BARNSLEY CCG GP PRACTICE,38044479,"3,884.34"
Department of Health,NHS Barnsley CCG,30/09/2021,Apprenticeship Levy Payable,BALANCE SHEET,HMRC,38067074,"1,341.00"
Department of Health,NHS Barnsley CCG,30/09/2021,Income tax <1Yr,BALANCE SHEET,HMRC,38067074,"74,233.66"
Department of Health,NHS Barnsley CCG,30/09/2021,Income tax <1Yr-Student Loans,BALANCE SHEET,HMRC,38067074,"2,463.00"
Department of Health,NHS Barnsley CCG,30/09/2021,National Insurance < 1 yr-NI- ERS,BALANCE SHEET,HMRC,38067074,"54,562.67"
Department of Health,NHS Barnsley CCG,30/09/2021,National Insurance < 1 yr-NI-EES,BALANCE SHEET,HMRC,38067074,"40,497.29"
Department of Health,NHS Barnsley CCG,30/09/2021,Recovery Notional SHPP,BALANCE SHEET,HMRC,38067074,-699.05
Department of Health,NHS Barnsley CCG,30/09/2021,Statutory Mat Pay < 1 yr,BALANCE SHEET,HMRC,38067074,"-3,635.06"
Department of Health,NHS Barnsley CCG,30/09/2021,C&M-GMS DES Learn Dsblty Hlth Chk,PRC DELEGATED CO-COMMISSIONING,NHS BARNSLEY CCG GP PRACTICE,38245490,280.00
Department of Health,NHS Barnsley CCG,30/09/2021,C&M-GMS Global Sum,PRC DELEGATED CO-COMMISSIONING,NHS BARNSLEY CCG GP PRACTICE,38245490,"107,247.35"
Department of Health,NHS Barnsley CCG,30/09/2021,C&M-GMS PCN DES Participation,PRC DELEGATED CO-COMMISSIONING,NHS BARNSLEY CCG GP PRACTICE,38245490,"2,036.03"
Department of Health,NHS Barnsley CCG,30/09/2021,C&M-GMS Prem Healthcentre Rent,PRC DELEGATED CO-COMMISSIONING,NHS BARNSLEY CCG GP PRACTICE,38245490,"40,292.41"
Department of Health,NHS Barnsley CCG,30/09/2021,C&M-GMS QOF Aspiration,PRC DELEGATED CO-COMMISSIONING,NHS BARNSLEY CCG GP PRACTICE,38245490,"10,599.42"
Department of Health,NHS Barnsley CCG,30/09/2021,C&M-GMS DES Learn Dsblty Hlth Chk,PRC DELEGATED CO-COMMISSIONING,NHS BARNSLEY CCG GP PRACTICE,38259219,140.00
Department of Health,NHS Barnsley CCG,30/09/2021,C&M-GMS Global Sum,PRC DELEGATED CO-COMMISSIONING,NHS BARNSLEY CCG GP PRACTICE,38259219,"100,443.93"
Department of Health,NHS Barnsley CCG,30/09/2021,C&M-GMS PCN DES Participation,PRC DELEGATED CO-COMMISSIONING,NHS BARNSLEY CCG GP PRACTICE,38259219,"1,902.18"
Department of Health,NHS Barnsley CCG,30/09/2021,C&M-GMS Prem Healthcentre Rent,PRC DELEGATED CO-COMMISSIONING,NHS BARNSLEY CCG GP PRACTICE,38259219,"21,964.61"
Department of Health,NHS Barnsley CCG,30/09/2021,C&M-GMS Prem Notional Rent,PRC DELEGATED CO-COMMISSIONING,NHS BARNSLEY CCG GP PRACTICE,38259219,"1,497.92"
Department of Health,NHS Barnsley CCG,30/09/2021,C&M-GMS QOF Aspiration,PRC DELEGATED CO-COMMISSIONING,NHS BARNSLEY CCG GP PRACTICE,38259219,"11,510.18"
Department of Health,NHS Barnsley CCG,30/09/2021,C&M-GMS WEIGHT MANAGEMENT SERVICE,PRC DELEGATED CO-COMMISSIONING,NHS BARNSLEY CCG GP PRACTICE,38259219,103.50
Department of Health,NHS Barnsley CCG,31/08/2021,Clinical&Medical-Commercial Sector,LEARNING DIFFICULTIES,IMAGINE INDEPENDENCE,37942653,"26,392.16"
Department of Health,NHS Barnsley CCG,30/09/2021,C&M-PMS Contract Value,PRC DELEGATED CO-COMMISSIONING,NHS BARNSLEY CCG GP PRACTICE,38044487,"54,050.51"
Department of Health,NHS Barnsley CCG,30/09/2021,C&M-PMS DES Learn Dsblty Hlth Chk,PRC DELEGATED CO-COMMISSIONING,NHS BARNSLEY CCG GP PRACTICE,38044487,420.00
Department of Health,NHS Barnsley CCG,30/09/2021,C&M-PMS Out of Hours Opt Outs,PRC DELEGATED CO-COMMISSIONING,NHS BARNSLEY CCG GP PRACTICE,38044487,6.77
Department of Health,NHS Barnsley CCG,30/09/2021,C&M-PMS PCN DES Participation,PRC DELEGATED CO-COMMISSIONING,NHS BARNSLEY CCG GP PRACTICE,38044487,961.24
Department of Health,NHS Barnsley CCG,30/09/2021,C&M-PMS Prem Healthcentre Rent,PRC DELEGATED CO-COMMISSIONING,NHS BARNSLEY CCG GP PRACTICE,38044487,"6,104.82"
Department of Health,NHS Barnsley CCG,30/09/2021,C&M-PMS Prem Notional Rent,PRC DELEGATED CO-COMMISSIONING,NHS BARNSLEY CCG GP PRACTICE,38044487,"3,666.67"
Department of Health,NHS Barnsley CCG,30/09/2021,C&M-PMS Prem Rates,PRC DELEGATED CO-COMMISSIONING,NHS BARNSLEY CCG GP PRACTICE,38044487,520.00
Department of Health,NHS Barnsley CCG,30/09/2021,C&M-PMS QOF Aspiration,PRC DELEGATED CO-COMMISSIONING,NHS BARNSLEY CCG GP PRACTICE,38044487,"5,627.68"
Department of Health,NHS Barnsley CCG,30/09/2021,C&M-PMS Contract Value,PRC DELEGATED CO-COMMISSIONING,NHS BARNSLEY CCG GP PRACTICE,38040469,"33,124.40"
Department of Health,NHS Barnsley CCG,30/09/2021,C&M-PMS Out of Hours Opt Outs,PRC DELEGATED CO-COMMISSIONING,NHS BARNSLEY CCG GP PRACTICE,38040469,78.51
Department of Health,NHS Barnsley CCG,30/09/2021,C&M-PMS PCN DES Participation,PRC DELEGATED CO-COMMISSIONING,NHS BARNSLEY CCG GP PRACTICE,38040469,592.95
Department of Health,NHS Barnsley CCG,30/09/2021,C&M-PMS Prem Notional Rent,PRC DELEGATED CO-COMMISSIONING,NHS BARNSLEY CCG GP PRACTICE,38040469,"4,333.33"
Department of Health,NHS Barnsley CCG,30/09/2021,C&M-PMS Prem Rates,PRC DELEGATED CO-COMMISSIONING,NHS BARNSLEY CCG GP PRACTICE,38040469,"1,447.00"
Department of Health,NHS Barnsley CCG,30/09/2021,C&M-PMS QOF Aspiration,PRC DELEGATED CO-COMMISSIONING,NHS BARNSLEY CCG GP PRACTICE,38040469,"2,920.89"
Department of Health,NHS Barnsley CCG,30/09/2021,C&M-APMS Contract Value,PRC DELEGATED CO-COMMISSIONING,NHS BARNSLEY CCG GP PRACTICE,38040471,"20,276.19"
Department of Health,NHS Barnsley CCG,30/09/2021,C&M-APMS OOH Opt Outs,PRC DELEGATED CO-COMMISSIONING,NHS BARNSLEY CCG GP PRACTICE,38040471,5.68
Department of Health,NHS Barnsley CCG,30/09/2021,C&M-APMS PCN DES Participation,PRC DELEGATED CO-COMMISSIONING,NHS BARNSLEY CCG GP PRACTICE,38040471,371.84
Department of Health,NHS Barnsley CCG,30/09/2021,C&M-APMS Prem Healthcentre Rent,PRC DELEGATED CO-COMMISSIONING,NHS BARNSLEY CCG GP PRACTICE,38040471,"5,111.96"
Department of Health,NHS Barnsley CCG,30/09/2021,C&M-APMS QOF Aspiration,PRC DELEGATED CO-COMMISSIONING,NHS BARNSLEY CCG GP PRACTICE,38040471,"1,630.65"
Department of Health,NHS Barnsley CCG,30/09/2021,Hcare Srv Rec NHS Trust-Contract Baseline,ACUTE COMMISSIONING,LEEDS TEACHING HOSPITALS NHS TRUST,38064297,"96,200.00"
Department of Health,NHS Barnsley CCG,30/09/2021,Hcare Srv Rec NHS Trust-Contract Baseline,ACUTE COMMISSIONING,MID YORKSHIRE HOSPITALS NHS TRUST,38064306,"284,581.00"
Department of Health,NHS Barnsley CCG,30/09/2021,Other Transport Costs,PATIENT TRANSPORT,NHS DONCASTER CCG,37994704,"28,702.78"
Department of Health,NHS Barnsley CCG,30/09/2021,Other Transport Costs,PATIENT TRANSPORT,NHS DONCASTER CCG,38072200,"40,000.00"
Department of Health,NHS Barnsley CCG,30/09/2021,Clinical&Medical-Commercial Sector,ACUTE COMMISSIONING,ONEHEALTH GROUP,37949316,"163,926.86"
Department of Health,NHS Barnsley CCG,30/09/2021,Clinical&Medical-Commercial Sector,ACUTE COMMISSIONING,ONEHEALTH GROUP,38198882,"150,572.70"
Department of Health,NHS Barnsley CCG,31/08/2021,Prescribing,PRESCRIBING,OTC DIRECT LTD TA NORTH WEST OSTOMY SUPPLIES,37921984,"48,567.89"
Department of Health,NHS Barnsley CCG,30/09/2021,Other Transport Costs,PATIENT TRANSPORT,PREMIER CARE DIRECT LTD,37961111,"35,025.67"
Department of Health,NHS Barnsley CCG,30/09/2021,Hcare Srv Rec Fdtn Trust-Contract Baseline,MENTAL HEALTH CONTRACTS,ROTHERHAM DONCASTER AND SOUTH HUMBER NHS FOUNDATION TRUST,38064146,"46,198.00"
Department of Health,NHS Barnsley CCG,30/09/2021,Hcare Srv Rec Fdtn Trust-Contract Baseline,ACUTE COMMISSIONING,ROTHERHAM NHS FOUNDATION TRUST,38064186,"389,808.00"
Department of Health,NHS Barnsley CCG,30/09/2021,Hcare Srv Rec Fdtn Trust-Contract Baseline,COMMUNITY SERVICES,ROTHERHAM NHS FOUNDATION TRUST,38064192,"43,320.00"
Department of Health,NHS Barnsley CCG,30/09/2021,C&M-GMS DES Learn Dsblty Hlth Chk,PRC DELEGATED CO-COMMISSIONING,NHS BARNSLEY CCG GP PRACTICE,38246715,560.00
Department of Health,NHS Barnsley CCG,30/09/2021,C&M-GMS Global Sum,PRC DELEGATED CO-COMMISSIONING,NHS BARNSLEY CCG GP PRACTICE,38246715,"68,336.45"
Department of Health,NHS Barnsley CCG,30/09/2021,C&M-GMS PCN DES Participation,PRC DELEGATED CO-COMMISSIONING,NHS BARNSLEY CCG GP PRACTICE,38246715,"1,286.44"
Department of Health,NHS Barnsley CCG,30/09/2021,C&M-GMS Prem Notional Rent,PRC DELEGATED CO-COMMISSIONING,NHS BARNSLEY CCG GP PRACTICE,38246715,"9,345.31"
Department of Health,NHS Barnsley CCG,30/09/2021,C&M-GMS Prem Rates,PRC DELEGATED CO-COMMISSIONING,NHS BARNSLEY CCG GP PRACTICE,38246715,"1,144.00"
Department of Health,NHS Barnsley CCG,30/09/2021,C&M-GMS Prem Water Rates,PRC DELEGATED CO-COMMISSIONING,NHS BARNSLEY CCG GP PRACTICE,38246715,96.00
Department of Health,NHS Barnsley CCG,30/09/2021,C&M-GMS QOF Aspiration,PRC DELEGATED CO-COMMISSIONING,NHS BARNSLEY CCG GP PRACTICE,38246715,"8,007.59"
Department of Health,NHS Barnsley CCG,30/09/2021,Hcare Srv Rec Fdtn Trust-Contract Baseline,ACUTE COMMISSIONING,SHEFFIELD CHILDRENS NHS FOUNDATION TRUST,38064290,"151,876.00"
Department of Health,NHS Barnsley CCG,30/09/2021,Hcare Srv Rec Fdtn Trust-Contract Baseline,ACUTE COMMISSIONING,SHEFFIELD TEACHING HOSPITALS NHS FOUNDATION TRUST,38064277,"2,208,459.00"
Department of Health,NHS Barnsley CCG,30/09/2021,Hcare Srv Rec Fdtn Trust-Contract Baseline,COMMUNITY SERVICES,SOUTH WEST YORKSHIRE PARTNERSHIP NHS FOUNDATION TRUST,38064222,"750,775.00"
Department of Health,NHS Barnsley CCG,30/09/2021,Hcare Srv Rec Fdtn Trust-Contract Baseline,MENTAL HEALTH SERVICES - ADULTS,SOUTH WEST YORKSHIRE PARTNERSHIP NHS FOUNDATION TRUST,38064230,"2,550,090.00"
Department of Health,NHS Barnsley CCG,30/09/2021,Hcare Srv Rec Fdtn Trust-Contract Baseline,CHILD AND ADOLESCENT MENTAL HEALTH,SOUTH WEST YORKSHIRE PARTNERSHIP NHS FOUNDATION TRUST,38064234,"271,127.00"
Department of Health,NHS Barnsley CCG,30/09/2021,Hcare Srv Rec Fdtn Trust-Contract Baseline,IMPROVING ACCESS TO PSYCHOLOGICAL THERAPIES,SOUTH WEST YORKSHIRE PARTNERSHIP NHS FOUNDATION TRUST,38064240,"286,871.00"
Department of Health,NHS Barnsley CCG,30/09/2021,Hcare Srv Rec Fdtn Trust-Contract Baseline,COMMUNITY SERVICES,SOUTH WEST YORKSHIRE PARTNERSHIP NHS FOUNDATION TRUST,38064247,"1,541,362.00"
Department of Health,NHS Barnsley CCG,30/09/2021,Hcare Srv Rec Fdtn Trust-Contract Baseline,LONG TERM CONDITIONS,SOUTH WEST YORKSHIRE PARTNERSHIP NHS FOUNDATION TRUST,38064253,"45,886.00"
Department of Health,NHS Barnsley CCG,30/09/2021,Hcare Srv Rec Fdtn Trust-Non Contract,COMMUNITY SERVICES,SOUTH WEST YORKSHIRE PARTNERSHIP NHS FOUNDATION TRUST,38064259,"74,519.00"
Department of Health,NHS Barnsley CCG,30/09/2021,Hcare Srv Rec Fdtn Trust-Contract Baseline,LONG TERM CONDITIONS,SOUTH WEST YORKSHIRE PARTNERSHIP NHS FOUNDATION TRUST,38064270,"139,149.00"
Department of Health,NHS Barnsley CCG,30/09/2021,Clinical&Medical-Commercial Sector,ACUTE COMMISSIONING,SPAMEDICA LTD,38122818,"81,911.67"
Department of Health,NHS Barnsley CCG,30/09/2021,Clinical&Medical-Commercial Sector,ACUTE COMMISSIONING,SPAMEDICA LTD,38159103,"-25,569.56"
Department of Health,NHS Barnsley CCG,30/09/2021,C&M-PMS Contract Value,PRC DELEGATED CO-COMMISSIONING,NHS BARNSLEY CCG GP PRACTICE,38044489,"89,038.64"
Department of Health,NHS Barnsley CCG,30/09/2021,C&M-PMS Out of Hours Opt Outs,PRC DELEGATED CO-COMMISSIONING,NHS BARNSLEY CCG GP PRACTICE,38044489,148.97
Department of Health,NHS Barnsley CCG,30/09/2021,C&M-PMS PCN DES Participation,PRC DELEGATED CO-COMMISSIONING,NHS BARNSLEY CCG GP PRACTICE,38044489,"1,566.94"
Department of Health,NHS Barnsley CCG,30/09/2021,C&M-PMS Prem Actual Rent,PRC DELEGATED CO-COMMISSIONING,NHS BARNSLEY CCG GP PRACTICE,38044489,319.38
Department of Health,NHS Barnsley CCG,30/09/2021,C&M-PMS Prem Healthcentre Rent,PRC DELEGATED CO-COMMISSIONING,NHS BARNSLEY CCG GP PRACTICE,38044489,"22,813.77"
Department of Health,NHS Barnsley CCG,30/09/2021,C&M-PMS QOF Aspiration,PRC DELEGATED CO-COMMISSIONING,NHS BARNSLEY CCG GP PRACTICE,38044489,"8,319.19"
Department of Health,NHS Barnsley CCG,30/09/2021,C&M-PMS Contract Value,PRC DELEGATED CO-COMMISSIONING,NHS BARNSLEY CCG GP PRACTICE,38064556,"48,884.92"
Department of Health,NHS Barnsley CCG,30/09/2021,C&M-PMS DES Learn Dsblty Hlth Chk,PRC DELEGATED CO-COMMISSIONING,NHS BARNSLEY CCG GP PRACTICE,38064556,140.00
Department of Health,NHS Barnsley CCG,30/09/2021,C&M-PMS Out of Hours Opt Outs,PRC DELEGATED CO-COMMISSIONING,NHS BARNSLEY CCG GP PRACTICE,38064556,28.06
Department of Health,NHS Barnsley CCG,30/09/2021,C&M-PMS PCN DES Participation,PRC DELEGATED CO-COMMISSIONING,NHS BARNSLEY CCG GP PRACTICE,38064556,874.36
Department of Health,NHS Barnsley CCG,30/09/2021,C&M-PMS PCO Locum Sickness,PRC DELEGATED CO-COMMISSIONING,NHS BARNSLEY CCG GP PRACTICE,38064556,"12,688.28"
Department of Health,NHS Barnsley CCG,30/09/2021,C&M-PMS PCO Other,PRC DELEGATED CO-COMMISSIONING,NHS BARNSLEY CCG GP PRACTICE,38064556,337.60
Department of Health,NHS Barnsley CCG,30/09/2021,C&M-PMS Prem Rates,PRC DELEGATED CO-COMMISSIONING,NHS BARNSLEY CCG GP PRACTICE,38064556,"1,237.00"
Department of Health,NHS Barnsley CCG,30/09/2021,C&M-PMS Prem Water Rates,PRC DELEGATED CO-COMMISSIONING,NHS BARNSLEY CCG GP PRACTICE,38064556,249.17
Department of Health,NHS Barnsley CCG,30/09/2021,C&M-PMS QOF Aspiration,PRC DELEGATED CO-COMMISSIONING,NHS BARNSLEY CCG GP PRACTICE,38064556,"4,735.85"
Department of Health,NHS Barnsley CCG,30/09/2021,ME-PMS GP Pension EEs Adjs - PMS,PRC DELEGATED CO-COMMISSIONING,NHS BARNSLEY CCG GP PRACTICE,38064556,"1,237.50"
Department of Health,NHS Barnsley CCG,30/09/2021,ME-PMS GP Pension EEs-PMS,PRC DELEGATED CO-COMMISSIONING,NHS BARNSLEY CCG GP PRACTICE,38064556,975.00
Department of Health,NHS Barnsley CCG,30/09/2021,ME-PMS GP Pension ERs Adjs - PMS,PRC DELEGATED CO-COMMISSIONING,NHS BARNSLEY CCG GP PRACTICE,38064556,"1,318.17"
Department of Health,NHS Barnsley CCG,30/09/2021,ME-PMS GP Pension ERs-PMS,PRC DELEGATED CO-COMMISSIONING,NHS BARNSLEY CCG GP PRACTICE,38064556,"2,804.10"
Department of Health,NHS Barnsley CCG,30/09/2021,Hcare Srv Rec NHS Trust-Contract Baseline,NHS 111,YORKSHIRE AMBULANCE SERVICE NHS TRUST,38064197,"74,423.00"
Department of Health,NHS Barnsley CCG,30/09/2021,Hcare Srv Rec NHS Trust-Contract Baseline,PATIENT TRANSPORT,YORKSHIRE AMBULANCE SERVICE NHS TRUST,38064203,"152,719.00"
Department of Health,NHS Barnsley CCG,30/09/2021,Hcare Srv Rec NHS Trust-Contract Baseline,AMBULANCE SERVICES,YORKSHIRE AMBULANCE SERVICE NHS TRUST,38064210,"799,219.00"
,,,,,,,"35,620,815.46"
